fUST/lending_fUST_20250310
["ID","MTS","AMOUNT","RATE_DAILY","PERIOD"]
[355789708,1741561896505,-2734.35609073,0.0059888,120]
[355789709,1741561896515,-1497.92,0.00599,63]
[355789710,1741561896524,-5000.0,0.00599,120]
[355789711,1741561896534,-5000.0,0.00599,120]
[355789712,1741561896544,-179697.343345,0.00599875,120]
[355789713,1741561896554,-1000.0,0.00599999,120]
[355789714,1741561896563,-200.0,0.006,120]
[355789715,1741561896573,-5000.0,0.006,90]
[355789716,1741561896583,-500.0,0.006,120]
[355789717,1741561896592,-160.0,0.006,120]
[355789718,1741561896602,-2000.0,0.006,120]
[355789719,1741561896612,-8703.77328763,0.006,120]
[355789720,1741561896621,-500.0,0.006,120]
[355789721,1741561896631,-151.0,0.00610932,120]
[355789722,1741561896641,-809.60462151,0.00614287,120]
[355789723,1741561896652,-2123.99650515,0.0061629,120]
[355789724,1741561896663,-1000.0,0.00617,120]
[355789725,1741561896673,-151.0,0.00618027,120]
[355789726,1741561896683,-151.0,0.00646301,120]
[355789727,1741561896694,-1000.0,0.00647,120]
[355789728,1741561896704,-119935.67413574,0.00649898,120]
[355789729,1741561896713,-476.14292376,0.00649898,120]
[355789730,1741561896725,-1000.0,0.0065,120]
[355789731,1741561896736,-572.20866808,0.0066,90]
[355789732,1741561896746,-5081.11226393,0.0066,120]
[355789733,1741561896757,-2777.520064,0.00661791,74]
[355789734,1741561896768,-2496.47,0.0068,120]
[355789735,1741561896778,-151.0,0.00681671,120]
[355789736,1741561896788,-6574.70852912,0.0069,120]
[355789737,1741561896797,-2379.14998969,0.006969,120]
[355789738,1741561896807,-89848.6716726,0.00699885,120]
[355789739,1741561896818,-1000.0,0.00699999,120]
[355789740,1741561896827,-537.03,0.007,30]
[355789741,1741561896837,-200.0,0.007,120]
[355789742,1741561896846,-5000.0,0.007,90]
[355789743,1741561896857,-14587.79393623,0.007,120]
[355789744,1741561896866,-2000.0,0.007,120]
[355789745,1741561896876,-500.0,0.007,120]
[355789746,1741561896886,-1000.0,0.00709,120]
[355789747,1741561896897,-1021.52659601,0.0071,120]
[355789748,1741561896908,-27254.92627369,0.0071,120]
[355789749,1741561896918,-809.60462151,0.00712581,120]
[355789750,1741561896929,-1000.0,0.00713,120]
[355789751,1741561896940,-151.0,0.00717041,120]
[355789752,1741561896950,-8734.26013401,0.007197,120]
[355789753,1741561896960,-8374.0,0.007197,120]
[355789754,1741561896971,-1000.0,0.0072,120]
[355789755,1741561896981,-2000.0,0.0072,120]
[355789756,1741561896993,-8734.26013401,0.007295,120]
[355789757,1741561897006,-292.151233,0.00737,120]
[355789758,1741561897015,-20000.0,0.00737,120]
[355789759,1741561897025,-213.0,0.00737,120]
[355789760,1741561897035,-20900.0,0.00737,120]
[355789761,1741561897045,-10000.0,0.007388,120]
[355789762,1741561897055,-1000.0,0.00739999,120]
[355789763,1741561897064,-1000.0,0.007429,120]
[355789764,1741561897074,-20000.0,0.00743,120]
[355789765,1741561897085,-20000.0,0.00743,120]
[355789766,1741561897094,-20000.0,0.00743,120]
[355789767,1741561897104,-20000.0,0.00746,120]
[355789768,1741561897114,-20000.0,0.00746,120]
[355789769,1741561897124,-20000.0,0.00746,120]
[355789770,1741561897134,-20000.0,0.00746,120]
[355789771,1741561897146,-20000.0,0.00746,120]
[355789772,1741561897156,-20000.0,0.00746,120]
[355789773,1741561897166,-20000.0,0.00746,120]
[355789774,1741561897177,-20000.0,0.00746,120]
[355789775,1741561897186,-20000.0,0.00746,120]
[355789776,1741561897197,-20000.0,0.00746,120]
[355789777,1741561897206,-20000.0,0.00746,120]
[355789778,1741561897215,-20000.0,0.00746,120]
[355789779,1741561897225,-9254.559999,0.00746,120]
[355789780,1741561897235,-7065.16,0.00746,120]
[355789781,1741561897246,-4378.799999,0.00746,120]
[355789782,1741561897256,-2400.2198639,0.00747348,120]
[355789783,1741561897267,-643.96705875,0.0074747,120]
[355789784,1741561897276,-1000.0,0.00748,120]
[355789785,1741561897287,-1000.0,0.0074879,120]
[355789786,1741561897297,-1075338.75159169,0.007488,30]
[355789787,1741561897306,-10000.0,0.007488,120]
[355789788,1741561897316,-4608.03352,0.0074888,120]
[355789789,1741561897325,-151.0,0.00752411,120]
[355789790,1741561897335,-15000.0,0.0076,120]
[355789791,1741561897344,-7500.0,0.007778,120]
[355789792,1741561897354,-500.0,0.0078711,120]
[355789793,1741561897363,-151.0,0.00787781,120]
[355789794,1741561897374,-1544.36,0.00797,71]
[355789795,1741561897384,-200.0,0.008,120]
[355789796,1741561897394,-400.0,0.008,120]
[355789797,1741561897403,-1710.443,0.008,93]
[355789798,1741561897412,-500.0,0.008,120]
[355789799,1741561897422,-151.0,0.00809041,120]
[355789800,1741561897433,-809.60462151,0.00810715,120]
[355789801,1741561897443,-151.0,0.00823151,120]
[355789802,1741561897454,-4000.0,0.00849,120]
[355789803,1741561897464,-151.0,0.00858521,120]
[355789804,1741561897473,-151.0,0.0089389,120]
[355789805,1741561897483,-5000.0,0.00899,120]
[355789806,1741561897494,-500.0,0.009,120]
[355789807,1741561897503,-809.60462151,0.0090893,120]
[355789808,1741561897513,-99999.99999926,0.0091,120]
[355789809,1741561897524,-151.0,0.0092926,120]
[355789810,1741561897534,-1548.05,0.009386,83]
[355789811,1741561897544,-6500.0,0.009489,120]
[355789812,1741561897554,-1149.13964769,0.0095,2]
[355789813,1741561897564,-500.0,0.00956526,120]
[355789814,1741561897574,-151.0,0.0096463,120]
[355789815,1741561897584,-500.0,0.009876,120]
[355789816,1741561897594,-504.40258443,0.00987617,120]
[355789817,1741561897604,-2400.2198639,0.00987831,120]
[355789818,1741561897613,-1559.0,0.0098806,101]
[355789819,1741561897623,-5000.0,0.0099,120]
[355789820,1741561897632,-89848.6716726,0.00995062,120]
[355789821,1741561897642,-350.0,0.01,120]
[355789822,1741561897654,-208.01155403,0.01,120]
[355789823,1741561897664,-200.0,0.01,120]
[355789824,1741561897674,-1600.52,0.01,111]
[355789825,1741561897685,-898.045323,0.01,64]
[355789826,1741561897695,-361.0,0.01,120]
[355789827,1741561897705,-500.0,0.01,120]
[355789828,1741561897715,-427.0,0.01000055,120]
[355789829,1741561897725,-809.60462151,0.01007143,120]
[355789830,1741561897740,-1000.0,0.0103,120]
[355789831,1741561897758,-1590.8,0.01032,103]
[355789832,1741561897768,-3000.0,0.0109,120]
[355789833,1741561897778,-151.0,0.011,120]
[355789834,1741561897788,-151.0,0.011,120]
[355789835,1741561897800,-809.60462151,0.01105357,120]
[355789836,1741561897812,-10865.48403231,0.01132557,30]
[355789837,1741561897824,-3000.0,0.0119,120]
[355789838,1741561897836,-350.0,0.012,120]
[355789839,1741561897850,-200.0,0.012,120]
[355789840,1741561897860,-809.60462151,0.01203571,120]
[355789841,1741561897870,-2400.2198639,0.01228314,120]
[355789842,1741561897880,-5000.0,0.0129,120]
[355789843,1741561897890,-809.60462151,0.01301787,120]
[355789844,1741561897901,-5000.0,0.0139,120]
[355789845,1741561897911,-1598.8,0.0139001,107]
[355789846,1741561897920,-350.0,0.014,120]
[355789847,1741561897930,-200.0,0.014,120]
[355789848,1741561897939,-809.60462151,0.0141002,120]
[355789849,1741561897950,-2337.7367849,0.01414797,120]
[355789850,1741561897960,-1396.94979,0.0143,107]
[355789851,1741561897970,-500000.0,0.01442,30]
[355789852,1741561897979,-1182.0,0.0144706,91]
[355789853,1741561897993,-2400.2198639,0.01468797,120]
[355789854,1741561898003,-1312.45,0.01485298,96]
[355789855,1741561898013,-5000.0,0.0149,120]
[355789856,1741561898022,-89848.6716726,0.01497791,120]
[355789857,1741561898032,-809.60462151,0.01498214,120]
[355789858,1741561898043,-500.0,0.015,120]
[355789859,1741561898053,-1663.143518,0.0151,105]
[355789860,1741561898063,-5000.0,0.0159,120]
[355789861,1741561898074,-809.60462151,0.01596429,120]
[355789862,1741561898085,-350.0,0.016,120]
[355789863,1741561898095,-200.0,0.016,120]
[355789864,1741561898105,-151.0,0.01618192,120]
[355789865,1741561898115,-1259.68502975,0.016578,120]
[355789866,1741561898124,-10865.48403231,0.01685035,30]
[355789867,1741561898134,-5000.0,0.0169,120]
[355789868,1741561898146,-809.60462151,0.01694644,120]
[355789869,1741561898157,-2400.2198639,0.01709279,120]
[355789870,1741561898168,-20000.0,0.01743,120]
[355789871,1741561898179,-500.0,0.0178711,120]
[355789872,1741561898189,-5000.0,0.0179,120]
[355789873,1741561898199,-809.60462151,0.01792858,120]
[355789874,1741561898209,-200.0,0.018,120]
[355789875,1741561898219,-5000.0,0.0189,120]
[355789876,1741561898230,-809.60462151,0.01891072,120]
[355789877,1741561898239,-2000.0,0.0194,120]
[355789878,1741561898250,-2400.2198639,0.01949762,120]
[355789879,1741561898260,-809.60462151,0.01989286,120]
[355789880,1741561898270,-5000.0,0.0199,120]
[355789881,1741561898280,-89848.6716726,0.01999902,120]
[355789882,1741561898289,-250.0,0.02,120]
[355789883,1741561898300,-150.0,0.02,120]
[355789884,1741561898310,-200.0,0.02,120]
[355789885,1741561898320,-155.0,0.02,120]
[355789886,1741561898330,-1497.9,0.02,112]
[355789887,1741561898340,-200.0,0.02,60]
[355789888,1741561898350,-500.0,0.02,120]
[355789889,1741561898360,-1000.0,0.0204,120]
[355789890,1741561898370,-809.60462151,0.02087597,120]
[355789891,1741561898380,-5000.0,0.0209,120]
[355789892,1741561898390,-1000.0,0.021,120]
[355789893,1741561898405,-151.0,0.02136384,120]
[355789894,1741561898415,-809.60462151,0.02185715,120]
[355789895,1741561898425,-5000.0,0.0219,120]
[355789896,1741561898436,-2400.2198639,0.02190245,120]
[355789897,1741561898446,-200.0,0.022,120]
[355789898,1741561898455,-155.0,0.02222,120]
[355789899,1741561898465,-10865.48403231,0.02237512,30]
[355789900,1741561898475,-1691.171,0.02281,88]
[355789901,1741561898487,-809.60462151,0.02283929,120]
[355789902,1741561898497,-5000.0,0.0229,120]
[355789903,1741561898507,-809.60462151,0.02382143,120]
[355789904,1741561898518,-5000.0,0.0239,120]
[355789905,1741561898530,-200.0,0.024,120]
[355789906,1741561898540,-2400.2198639,0.02430728,120]
[355789907,1741561898551,-1856.288,0.02433692,117]
[355789908,1741561898561,-1724.74,0.024673,102]
[355789909,1741561898572,-809.60462151,0.02480357,120]
[355789910,1741561898582,-5000.0,0.0249,120]
[355789911,1741561898592,-89848.6716726,0.02494645,120]
[355789912,1741561898602,-250.0,0.025,120]
[355789913,1741561898612,-500.0,0.025,120]
[355789914,1741561898622,-809.60462151,0.02578571,120]
[355789915,1741561898631,-5000.0,0.0259,120]
[355789916,1741561898641,-200.0,0.026,120]
[355789917,1741561898655,-1211.94212529,0.026,100]
[355789918,1741561898666,-1912.8,0.026,110]
[355789919,1741561898676,-151.0,0.02654575,120]
[355789920,1741561898686,-418.9,0.0266,90]
[355789921,1741561898696,-2400.2198639,0.0267121,120]
[355789922,1741561898706,-809.60462151,0.02676787,120]
[355789923,1741561898715,-9999.0,0.0268,120]
[355789924,1741561898726,-2000.0,0.02683582,120]
[355789925,1741561898738,-1572.11247,0.02690274,85]
[355789926,1741561898748,-1807.27833,0.027,65]
[355789927,1741561898758,-1933.381,0.02729,97]
[355789928,1741561898768,-20000.0,0.02743,120]
[355789929,1741561898779,-250.0,0.0274747,120]
[355789930,1741561898789,-809.60462151,0.0277514,120]
[355789931,1741561898800,-9999.0,0.0278,120]
[355789932,1741561898810,-500.0,0.0278711,120]
[355789933,1741561898820,-10865.48403231,0.0278999,30]
[355789934,1741561898830,-30000.0,0.028,120]
[355789935,1741561898839,-200.0,0.028,120]
[355789936,1741561898989,-809.60462151,0.02873214,120]
[355789937,1741561899003,-160.0,0.02879,120]
[355789938,1741561899014,-9999.0,0.0288,120]
[355789939,1741561899025,-155.0,0.02888,120]
[355789940,1741561899035,-2400.2198639,0.02911693,120]
[355789941,1741561899044,-1056.768,0.02939,79]
[355789942,1741561899056,-809.60462151,0.02971429,120]
[355789943,1741561899067,-2581.05783869,0.0298,120]
[355789944,1741561899638,-2576.55206778,0.00025174,2]
[355789945,1741561900229,-1598.27334241,0.00025174,2]
[355789946,1741561900246,-1388.22665757,0.000299,2]
[355789947,1741561903246,250.0,0.0002502,2]
[355789948,1741561904165,300.0,0.0002502,2]
[355789949,1741561910242,160.0,0.0002,3]
[355789950,1741561911244,160.0,0.0002,3]
[355789952,1741562105877,424.1194447,0.00024264,2]
[355789953,1741562120131,5000.0,0.00015,120]
[355789955,1741562196404,500.0,0.00024258,2]
[355789956,1741562225480,-166.66666666,0.00025152,2]
[355789957,1741562225507,-2162.98610046,0.00025152,2]
[355789958,1741562225538,-160.89,0.00025251,3]
[355789959,1741562225564,-482.72,0.00025251,3]
[355789960,1741562225591,-174.0,0.00025259,2]
[355789961,1741562225619,-500.0,0.0002526,2]
[355789962,1741562225650,-500.0,0.0002526,2]
[355789963,1741562225679,-500.0,0.0002526,2]
[355789964,1741562225711,-500.0,0.0002526,2]
[355789965,1741562225741,-500.0,0.0002526,2]
[355789966,1741562225770,-500.0,0.0002526,2]
[355789967,1741562225797,-500.0,0.0002526,2]
[355789968,1741562225829,-500.0,0.0002526,2]
[355789969,1741562225860,-500.0,0.0002526,2]
[355789970,1741562225888,-500.0,0.0002526,2]
[355789971,1741562225920,-500.0,0.0002526,2]
[355789972,1741562225951,-500.0,0.0002526,2]
[355789973,1741562225980,-587.66312625,0.0002526,2]
[355789974,1741562226008,-500.0,0.0002526,2]
[355789975,1741562226040,-500.0,0.0002526,2]
[355789976,1741562226068,-500.0,0.0002526,2]
[355789977,1741562226100,-500.0,0.0002526,2]
[355789978,1741562226131,-500.0,0.0002526,2]
[355789979,1741562226166,-500.0,0.0002526,2]
[355789980,1741562226195,-500.0,0.0002526,2]
[355789981,1741562226223,-166.76972519,0.0002526,2]
[355789982,1741562226251,-500.0,0.0002526,2]
[355789983,1741562226281,-500.0,0.0002526,2]
[355789984,1741562226308,-500.0,0.0002526,2]
[355789985,1741562226336,-500.0,0.0002526,2]
[355789986,1741562226364,-500.0,0.0002526,2]
[355789987,1741562226398,-500.0,0.0002526,2]
[355789988,1741562226426,-500.0,0.0002526,2]
[355789989,1741562226452,-500.0,0.0002526,2]
[355789990,1741562226482,-500.0,0.0002526,2]
[355789991,1741562226509,-500.0,0.0002526,2]
[355789992,1741562226538,-500.0,0.0002526,2]
[355789993,1741562226569,-500.0,0.0002526,2]
[355789994,1741562226596,-500.0,0.0002526,2]
[355789995,1741562226623,-500.0,0.0002526,2]
[355789996,1741562226657,-500.0,0.0002526,2]
[355789997,1741562226685,-500.0,0.0002526,2]
[355789998,1741562226715,-500.0,0.0002526,2]
[355789999,1741562226742,-500.0,0.0002526,2]
[355790000,1741562226772,-500.0,0.0002526,2]
[355790001,1741562226803,-500.0,0.0002526,2]
[355790002,1741562226831,-500.0,0.0002526,2]
[355790003,1741562226859,-500.0,0.0002526,2]
[355790004,1741562226891,-500.0,0.0002526,2]
[355790005,1741562226920,-500.0,0.0002526,2]
[355790006,1741562226950,-500.0,0.0002526,2]
[355790007,1741562226976,-500.0,0.0002526,2]
[355790008,1741562227006,-500.0,0.0002526,2]
[355790009,1741562227035,-500.0,0.0002526,2]
[355790010,1741562227063,-500.0,0.0002526,2]
[355790011,1741562227094,-500.0,0.0002526,2]
[355790012,1741562227123,-500.0,0.0002526,2]
[355790013,1741562227157,-500.0,0.0002526,2]
[355790014,1741562227185,-500.0,0.0002526,2]
[355790015,1741562227215,-500.0,0.0002526,2]
[355790016,1741562227246,-500.0,0.0002526,2]
[355790017,1741562227279,-500.0,0.0002526,2]
[355790018,1741562227308,-500.0,0.0002526,2]
[355790019,1741562227344,-500.0,0.0002526,2]
[355790020,1741562227374,-500.0,0.0002526,2]
[355790021,1741562227408,-500.0,0.0002526,2]
[355790022,1741562227439,-500.0,0.0002526,2]
[355790023,1741562227471,-500.0,0.0002526,2]
[355790024,1741562227500,-500.0,0.0002526,2]
[355790025,1741562227533,-500.0,0.0002526,2]
[355790026,1741562227564,-500.0,0.0002526,2]
[355790027,1741562227597,-500.0,0.0002526,2]
[355790028,1741562227629,-500.0,0.0002526,2]
[355790029,1741562227667,-500.0,0.0002526,2]
[355790030,1741562227699,-500.0,0.0002526,2]
[355790031,1741562227730,-500.0,0.0002526,2]
[355790032,1741562227760,-344.71601709,0.0002526,2]
[355790033,1741562227791,-500.0,0.0002526,2]
[355790034,1741562227823,-500.0,0.0002526,2]
[355790035,1741562227855,-500.0,0.0002526,2]
[355790036,1741562227887,-500.0,0.0002526,2]
[355790037,1741562228041,-500.0,0.0002526,2]
[355790038,1741562228073,-500.0,0.0002526,2]
[355790039,1741562228108,-500.0,0.0002526,2]
[355790040,1741562228143,-13469.91374745,0.0002526,2]
[355790041,1741562228176,-13469.91374745,0.0002526,2]
[355790042,1741562228209,-13469.91374745,0.0002526,2]
[355790043,1741562228240,-13469.91374745,0.0002526,2]
[355790044,1741562228271,-13469.91374745,0.0002526,2]
[355790045,1741562228298,-500.0,0.0002526,2]
[355790046,1741562228330,-13469.91374745,0.0002526,2]
[355790047,1741562228357,-500.0,0.0002526,2]
[355790048,1741562228384,-500.0,0.0002526,2]
[355790049,1741562228420,-13469.91374745,0.0002526,2]
[355790050,1741562228447,-500.0,0.0002526,2]
[355790051,1741562228479,-13469.91374745,0.0002526,2]
[355790052,1741562228505,-500.0,0.0002526,2]
[355790053,1741562228537,-13469.91374745,0.0002526,2]
[355790054,1741562228564,-500.0,0.0002526,2]
[355790055,1741562228591,-500.0,0.0002526,2]
[355790056,1741562228620,-13469.91374745,0.0002526,2]
[355790057,1741562228649,-500.0,0.0002526,2]
[355790058,1741562228678,-13469.91374745,0.0002526,2]
[355790059,1741562228704,-500.0,0.0002526,2]
[355790060,1741562228731,-500.0,0.0002526,2]
[355790061,1741562228758,-500.0,0.0002526,2]
[355790062,1741562228788,-13469.91374745,0.0002526,2]
[355790063,1741562228815,-500.0,0.0002526,2]
[355790064,1741562228843,-500.0,0.0002526,2]
[355790065,1741562228873,-13469.91374745,0.0002526,2]
[355790066,1741562228905,-500.0,0.0002526,2]
[355790067,1741562228935,-13469.91374745,0.0002526,2]
[355790068,1741562228962,-500.0,0.0002526,2]
[355790069,1741562228989,-500.0,0.0002526,2]
[355790070,1741562229021,-13469.91374745,0.0002526,2]
[355790071,1741562229050,-500.0,0.0002526,2]
[355790072,1741562229078,-500.0,0.0002526,2]
[355790073,1741562229108,-500.0,0.0002526,2]
[355790074,1741562229148,-13469.91374745,0.0002526,2]
[355790075,1741562229176,-500.0,0.0002526,2]
[355790076,1741562229207,-500.0,0.0002526,2]
[355790077,1741562229240,-13469.91374745,0.0002526,2]
[355790078,1741562229268,-500.0,0.0002526,2]
[355790079,1741562229296,-500.0,0.0002526,2]
[355790080,1741562229327,-13469.91374745,0.0002526,2]
[355790081,1741562229356,-500.0,0.0002526,2]
[355790082,1741562229387,-13469.91374745,0.0002526,2]
[355790083,1741562229418,-500.0,0.0002526,2]
[355790084,1741562229445,-500.0,0.0002526,2]
[355790085,1741562229476,-13469.91374745,0.0002526,2]
[355790086,1741562229503,-500.0,0.0002526,2]
[355790087,1741562229530,-500.0,0.0002526,2]
[355790088,1741562229557,-500.0,0.0002526,2]
[355790089,1741562229589,-13469.91374745,0.0002526,2]
[355790090,1741562229619,-500.0,0.0002526,2]
[355790091,1741562229658,-13469.91374745,0.0002526,2]
[355790092,1741562229688,-500.0,0.0002526,2]
[355790093,1741562229717,-500.0,0.0002526,2]
[355790094,1741562229749,-13469.91374745,0.0002526,2]
[355790095,1741562229780,-13469.91374745,0.0002526,2]
[355790096,1741562229812,-13469.91374745,0.0002526,2]
[355790097,1741562229839,-500.0,0.0002526,2]
[355790098,1741562229870,-13469.91374745,0.0002526,2]
[355790099,1741562229907,-13469.91374745,0.0002526,2]
[355790100,1741562229931,-432.39639149,0.0002526,2]
[355790101,1741562229960,-13469.91374745,0.0002526,2]
[355790102,1741562229988,-500.0,0.0002526,2]
[355790103,1741562230016,-500.0,0.0002526,2]
[355790104,1741562230044,-500.0,0.0002526,2]
[355790105,1741562230073,-500.0,0.0002526,2]
[355790106,1741562230106,-500.0,0.0002526,2]
[355790107,1741562230139,-298806.458321,0.00025262,2]
[355790108,1741562230179,-85470.9820632,0.00025262,2]
[355790109,1741562230207,-171.35,0.00025272,2]
[355790110,1741562230235,-503.89088931,0.00025273,2]
[355790111,1741562230262,-303.03153518,0.00025273,2]
[355790112,1741562230290,-500.0,0.00025273,2]
[355790113,1741562230320,-160.38455878,0.00025273,2]
[355790114,1741562230351,-469.3,0.00025273,2]
[355790115,1741562230380,-500.0,0.00025273,2]
[355790116,1741562230416,-501.67916063,0.00025273,2]
[355790117,1741562230445,-2361.07272758,0.000259,4]
[355790118,1741562230474,-186.73,0.00026105,2]
[355790119,1741562230503,-321.78,0.00026621,3]
[355790120,1741562230531,-1084.95708846,0.00027297,2]
[355790121,1741562230559,-297.99655969,0.00027373,2]
[355790122,1741562230586,-500.0,0.00027373,2]
[355790123,1741562230613,-500.0,0.00027373,2]
[355790124,1741562230644,-500.0,0.00027373,2]
[355790125,1741562230674,-333.16648859,0.00027373,2]
[355790126,1741562230702,-18315.2104421,0.00027387,2]
[355790127,1741562230730,-186.763769,0.00027397,7]
[355790128,1741562230759,-500.0,0.00027397,2]
[355790129,1741562230789,-500.0,0.00027397,2]
[355790130,1741562230818,-500.0,0.00027397,2]
[355790131,1741562230860,-500.0,0.00027397,2]
[355790132,1741562230898,-500.0,0.00027397,2]
[355790133,1741562230928,-500.0,0.00027397,2]
[355790134,1741562230958,-500.0,0.00027397,2]
[355790135,1741562230988,-500.0,0.00027397,2]
[355790136,1741562231018,-500.0,0.00027397,2]
[355790137,1741562231048,-500.0,0.00027397,2]
[355790138,1741562231078,-500.0,0.00027397,2]
[355790139,1741562231109,-500.0,0.00027397,2]
[355790140,1741562231145,-500.0,0.00027397,2]
[355790141,1741562231341,-500.0,0.00027397,2]
[355790142,1741562231373,-500.0,0.00027397,2]
[355790143,1741562231409,-500.0,0.00027397,2]
[355790144,1741562231438,-500.0,0.00027397,2]
[355790145,1741562231468,-500.0,0.00027397,2]
[355790146,1741562231498,-500.0,0.00027397,2]
[355790147,1741562231534,-500.0,0.00027397,2]
[355790148,1741562231566,-500.0,0.00027397,2]
[355790149,1741562231596,-500.0,0.00027397,2]
[355790150,1741562231626,-209.88219506,0.00027397,2]
[355790151,1741562231658,-500.0,0.00027397,2]
[355790152,1741562231692,-500.0,0.00027397,2]
[355790153,1741562231722,-2030.57173992,0.00027397,2]
[355790154,1741562231753,-2030.57173992,0.00027397,2]
[355790155,1741562231782,-2030.57173992,0.00027397,2]
[355790156,1741562231811,-2030.57173992,0.00027397,2]
[355790157,1741562231840,-2030.57173992,0.00027397,2]
[355790158,1741562231868,-2030.57173992,0.00027397,2]
[355790159,1741562231904,-2030.57173992,0.00027397,2]
[355790160,1741562231933,-2030.57173992,0.00027397,2]
[355790161,1741562231963,-2030.57173992,0.00027397,2]
[355790162,1741562231995,-2030.57173992,0.00027397,2]
[355790163,1741562232026,-2030.57173992,0.00027397,2]
[355790164,1741562232056,-2030.57173992,0.00027397,2]
[355790165,1741562232086,-2030.57173992,0.00027397,2]
[355790166,1741562232121,-2030.57173992,0.00027397,2]
[355790167,1741562232160,-2030.57173992,0.00027397,2]
[355790168,1741562232193,-2030.57173992,0.00027397,2]
[355790169,1741562232224,-2030.57173992,0.00027397,2]
[355790170,1741562232255,-2030.57173992,0.00027397,2]
[355790171,1741562232288,-2030.57173992,0.00027397,2]
[355790172,1741562232320,-2030.57173992,0.00027397,2]
[355790173,1741562232353,-2030.57173992,0.00027397,2]
[355790174,1741562232384,-2030.57173992,0.00027397,2]
[355790175,1741562232419,-2030.57173992,0.00027397,2]
[355790176,1741562232449,-2030.57173992,0.00027397,2]
[355790177,1741562232477,-2030.57173992,0.00027397,2]
[355790178,1741562232506,-2030.57173992,0.00027397,2]
[355790179,1741562232538,-2030.57173992,0.00027397,2]
[355790180,1741562232569,-2030.57173992,0.00027397,2]
[355790181,1741562232598,-2030.57173992,0.00027397,2]
[355790182,1741562232629,-2030.57173992,0.00027397,2]
[355790183,1741562232663,-2030.57173992,0.00027397,2]
[355790184,1741562232694,-2030.57173992,0.00027397,2]
[355790185,1741562232725,-2030.57173992,0.00027397,2]
[355790186,1741562232757,-2030.57173992,0.00027397,2]
[355790187,1741562232788,-2030.57173992,0.00027397,2]
[355790188,1741562232817,-2030.57173992,0.00027397,2]
[355790189,1741562232846,-2030.57173992,0.00027397,2]
[355790190,1741562232876,-2030.57173992,0.00027397,2]
[355790191,1741562232908,-2030.57173992,0.00027397,2]
[355790192,1741562232940,-2030.57173992,0.00027397,2]
[355790193,1741562232971,-2030.57173992,0.00027397,2]
[355790194,1741562233002,-2030.57173992,0.00027397,2]
[355790195,1741562233030,-186.73,0.00027475,2]
[355790196,1741562233057,-13990.45031127,0.00027696,2]
[355790197,1741562233086,-500.0,0.0002802,2]
[355790198,1741562233119,-500.0,0.0002802,2]
[355790199,1741562233151,-582.50023953,0.00028405,5]
[355790200,1741562233180,-500.0,0.00028405,5]
[355790201,1741562233212,-336.178893,0.00028585,7]
[355790202,1741562233240,-336.178893,0.00028585,7]
[355790203,1741562233269,-186.73,0.00028845,2]
[355790204,1741562233296,-231.0,0.0003,2]
[355790205,1741562233407,382.35947994,0.00025273,2]
[355790206,1741562233460,500.18384606,0.00025273,2]
[355790207,1741562233622,500.0999027,0.00027373,2]
[355790208,1741562233680,500.0,0.00027373,2]
[355790209,1741562235534,2010.26602252,0.00027397,2]